[Event "British Championship 2024"]
[Site "Hull"]
[Date "2024.07.31"]
[Round "5.31"]
[White "Dicen, Elis Denele"]
[Black "Shafi, Declan"]
[Result "0-1"]
[Annotator "RC"]
[ECO "C45"]
[WhiteElo "2073"]
[BlackElo "2222"]
[PlyCount "138"]
[EventDate "2024.07.31"]
[EventCountry "GBR"]
[SourceTitle "playchess.com"]
[Source "ChessBase"]
[SourceQuality "1"]
[TimeControl "40/5400+30:1800+30"]

1. e4 {[%emt 0:00:03]} e5 {[%emt 0:00:06]} 2. Nf3 {[%emt 0:00:06]} Nc6 {[%emt 0:00:05]} 3. d4 {[%emt 0:00:07]} exd4 {[%emt 0:00:06]} 4. Nxd4 {[%emt 0:00:07]} Nf6 {[%emt 0:00:08]} 5. Nxc6 {[%emt 0:00:07]} bxc6 {[%emt 0:00:05]} 6. Nd2 {[%emt 0:00:12]} Bc5 {[%emt 0:03:09]} 7. Nb3 {[%emt 0:01:55]} Bb6 {[%emt 0:11:58]} 8. e5 {[%emt 0:07:15]} Qe7 {[%emt 0:14:10]} 9. Qe2 {[%emt 0:02:02]} Nd5 {[%emt 0:00:45]} 10. c4 {[%emt 0:19:09]} Ba6 {[%emt 0:01:16]} 11. Qe4 {[%emt 0:06:58]} f5 {[%emt 0:06:22]} 12. Qe2 {[%emt 0:15:17]} O-O-O {[%emt 0:03:58]} 13. Bd2 {[%emt 0:04:18]} Nb4 {[%emt 0:04:08]} 14. Bxb4 {[%emt 0:06:49]} Qxb4+ {[%emt 0:00:05]} 15. Qd2 {[%emt 0:00:24]} Qxd2+ {[%emt 0:00:40]} 16. Kxd2 {[%emt 0:02:17]} Bxf2 {[%emt 0:01:25]} 17. c5 {[%emt 0:02:30]} Bb7 {[%emt 0:03:48]} 18. Bd3 {[%emt 0:03:54]} f4 {[%emt 0:01:42]} 19. Ke2 {[%emt 0:03:58]} Be3 {[%emt 0:00:57]} 20. g3 {[%emt 0:02:09]} Rde8 {[%emt 0:01:23]} 21. gxf4 {[%emt 0:01:45]} Bxf4 {[%emt 0:00:11]} 22. Kd1 {[%emt 0:04:14]} Rxe5 {[%emt 0:04:02]} 23. Kc2 {[%emt 0:01:12]} h6 {[%emt 0:00:13]} 24. Raf1 {[%emt 0:00:31]} g5 {[%emt 0:00:36]} 25. h4 {[%emt 0:00:40]} Rhe8 {[%emt 0:00:39]} 26. hxg5 {[%emt 0:00:32]} hxg5 {[%emt 0:00:09]} 27. Rh7 {[%emt 0:00:44]} Kd8 {[%emt 0:01:03]} 28. Bc4 {[%emt 0:02:27]} R5e7 {[%emt 0:02:26]} 29. Rh6 {[%emt 0:01:20]} d5 {[%emt 0:02:54]} 30. Bd3 {[%emt 0:00:54]} Re6 {[%emt 0:01:11]} 31. Rh7 {[%emt 0:00:53]} Bc8 {[%emt 0:04:09]} 32. Nd4 {[%emt 0:04:27]} Rf6 {[%emt 0:00:34]} 33. Rg7 {[%emt 0:01:32]} Bd7 {[%emt 0:01:36]} 34. Rh1 {[%emt 0:01:35]} Be5 {[%emt 0:01:22]} 35. Ne2 {[%emt 0:01:44]} Bf5 {[%emt 0:01:29]} 36. Rxg5 {[%emt 0:01:27]} Bxd3+ {[%emt 0:00:22]} 37. Kxd3 {[%emt 0:00:06]} Rf3+ {[%emt 0:00:53]} 38. Kd2 {[%emt 0:01:43]} Rf2 {[%emt 0:00:33]} 39. Rg4 {[%emt 0:01:03]} Bxb2 {[%emt 0:00:57]} 40. Re1 {[%emt 0:00:29]} Ba3 {[%emt 0:03:27]} 41. Kd3 {[%emt 0:31:09]} Bxc5 {[%emt 0:30:36]} 42. Ra4 {[%emt 0:00:00]} Rf3+ {[%emt 0:00:00]} 43. Kd2 {[%emt 0:00:00]} Rfe3 {[%emt 0:00:00]} 44. Kd1 {[%emt 0:00:00]} Kd7 {[%emt 0:00:00]} 45. Rf4 {[%emt 0:00:00]} a5 {[%emt 0:00:00]} 46. a3 {[%emt 0:00:00]} Bxa3 {[%emt 0:00:00]} 47. Rf2 {[%emt 0:00:00]} Bc5 {[%emt 0:00:00]} 48. Rg2 {[%emt 0:00:00]} a4 {[%emt 0:00:00]} 49. Rf1 {[%emt 0:00:00]} a3 {[%emt 0:00:00]} 50. Nc1 {[%emt 0:00:00]} Bb4 {[%emt 0:00:00]} 51. Kc2 {[%emt 0:00:00]} c5 {[%emt 0:00:00]} 52. Kb1 {[%emt 0:00:00]} d4 {[%emt 0:00:00]} 53. Rd1 {[%emt 0:00:00]} Re1 {[%emt 0:00:00]} 54. Rg1 {[%emt 0:00:00]} Rxg1 {[%emt 0:00:00]} 55. Rxg1 {[%emt 0:00:00]} c4 {[%emt 0:00:00]} 56. Rg4 {[%emt 0:00:00]} c5 {[%emt 0:00:00]} 57. Rg2 {[%emt 0:00:00]} Re1 {[%emt 0:00:00]} 58. Ka2 {[%emt 0:00:00]} d3 {[%emt 0:00:00]} 59. Rg7+ {[%emt 0:00:00]} Ke6 {[%emt 0:00:00]} 60. Rg2 {[%emt 0:00:00]} d2 {[%emt 0:00:00]} 61. Nd3 {[%emt 0:00:00]} cxd3 {[%emt 0:00:00]} 62. Rh2 {[%emt 0:00:00]} d1=R {[%emt 0:00:00]} 63. Rh3 {[%emt 0:00:00]} Rd2+ {[%emt 0:00:00]} 64. Kb3 {[%emt 0:00:00]} Rb2+ {[%emt 0:00:00]} 65. Ka4 {[%emt 0:00:00]} a2 {[%emt 0:00:00]} 66. Rf3 {[%emt 0:00:00]} a1=Q+ {[%emt 0:00:00]} 67. Kb5 {[%emt 0:00:00]} Bd2+ {[%emt 0:00:00]} 68. Kc4 {[%emt 0:00:00]} Qa4+ {[%emt 0:00:00]} 69. Kxd3 {[%emt 0:00:00]} Qd4# {[%emt 0:39:22]} 0-1

[Event "British Championship 2024"]
[Site "Hull"]
[Date "2024.07.31"]
[Round "5.32"]
[White "Starley, Robert"]
[Black "Pang, Ethan"]
[Result "1-0"]
[Annotator "RC"]
[ECO "B30"]
[WhiteElo "2017"]
[BlackElo "2164"]
[PlyCount "159"]
[EventDate "2024.07.31"]
[EventCountry "GBR"]
[SourceTitle "playchess.com"]
[Source "ChessBase"]
[SourceQuality "1"]
[TimeControl "40/5400+30:1800+30"]

1. e4 {[%emt 0:00:02]} c5 {[%emt 0:07:50]} 2. Nf3 {[%emt 0:00:06]} Nc6 {[%emt 0:00:19]} 3. Bb5 {[%emt 0:00:07]} e5 {[%emt 0:00:25]} 4. O-O {[%emt 0:00:22]} Be7 {[%emt 0:00:39]} 5. Bxc6 {[%emt 0:00:55]} dxc6 {[%emt 0:00:13]} 6. Nxe5 {[%emt 0:00:16]} Qd4 {[%emt 0:00:36]} 7. Nf3 {[%emt 0:00:19]} Qxe4 {[%emt 0:00:13]} 8. d3 {[%emt 0:00:28]} Qg6 {[%emt 0:02:48]} 9. Re1 {[%emt 0:01:40]} Nf6 {[%emt 0:01:55]} 10. Bf4 {[%emt 0:03:59]} Nd5 {[%emt 0:02:29]} 11. Bg3 {[%emt 0:01:39]} Be6 {[%emt 0:01:39]} 12. Nbd2 {[%emt 0:01:52]} O-O {[%emt 0:02:21]} 13. Qe2 {[%emt 0:03:35]} h6 {[%emt 0:03:35]} 14. a4 {[%emt 0:02:28]} Rad8 {[%emt 0:02:20]} 15. a5 {[%emt 0:00:59]} Nb4 {[%emt 0:02:10]} 16. Ne5 {[%emt 0:05:25]} Qh7 {[%emt 0:01:09]} 17. Ndc4 {[%emt 0:02:57]} Rfe8 {[%emt 0:04:11]} 18. a6 {[%emt 0:07:10]} b6 {[%emt 0:09:17]} 19. Rad1 {[%emt 0:02:32]} h5 {[%emt 0:04:54]} 20. c3 {[%emt 0:18:23]} Nxd3 {[%emt 0:07:21]} 21. Rxd3 {[%emt 0:02:34]} Rxd3 {[%emt 0:00:30]} 22. Nxb6 {[%emt 0:04:39]} Rdd8 {[%emt 0:08:08]} 23. Nxc6 {[%emt 0:03:06]} axb6 {[%emt 0:01:47]} 24. Nxd8 {[%emt 0:00:28]} Rxd8 {[%emt 0:01:09]} 25. a7 {[%emt 0:01:42]} Ra8 {[%emt 0:08:47]} 26. Qe5 {[%emt 0:03:24]} Qd3 {[%emt 0:01:22]} 27. Qb8+ {[%emt 0:02:10]} Qd8 {[%emt 0:00:09]} 28. Bc7 {[%emt 0:05:39]} Qf8 {[%emt 0:00:22]} 29. Rd1 {[%emt 0:02:04]} Qc8 {[%emt 0:03:21]} 30. Qxb6 {[%emt 0:01:32]} c4 {[%emt 0:02:08]} 31. Bb8 {[%emt 0:02:10]} Bc5 {[%emt 0:07:51]} 32. Qa5 {[%emt 0:01:33]} Qc6 {[%emt 0:00:39]} 33. Qd8+ {[%emt 0:02:18]} Kh7 {[%emt 0:00:58]} 34. Qg5 {[%emt 0:03:12]} Bg4 {[%emt 0:02:18]} 35. Ra1 {[%emt 0:01:54]} Qb6 {[%emt 0:06:50]} 36. h3 {[%emt 0:06:31]} Bxf2+ {[%emt 0:02:39]} 37. Kh1 {[%emt 0:00:10]} Be6 {[%emt 0:00:49]} 38. Qxh5+ {[%emt 0:00:44]} Kg8 {[%emt 0:00:04]} 39. Qf3 {[%emt 0:00:34]} Qxb2 {[%emt 0:02:02]} 40. Rd1 {[%emt 0:01:12]} Rxb8 {[%emt 0:01:34]} 41. axb8=Q+ {[%emt 0:30:30]} Qxb8 {[%emt 0:00:44]} 42. Qxf2 {[%emt 0:00:00]} Qe5 {[%emt 0:00:25]} 43. Qh4 {[%emt 0:00:00]} f6 {[%emt 0:00:53]} 44. Re1 {[%emt 0:00:00]} Qf5 {[%emt 0:30:37]} 45. Qe4 {[%emt 0:00:00]} Qxe4 {[%emt 0:00:00]} 46. Rxe4 {[%emt 0:00:00]} Kf7 {[%emt 0:00:00]} 47. Kg1 {[%emt 0:00:00]} Bd5 {[%emt 0:00:00]} 48. Re1 {[%emt 0:00:00]} f5 {[%emt 0:00:00]} 49. Kf2 {[%emt 0:00:00]} Kf6 {[%emt 0:00:00]} 50. g3 {[%emt 0:00:00]} g5 {[%emt 0:00:00]} 51. h4 {[%emt 0:00:00]} gxh4 {[%emt 0:00:00]} 52. gxh4 {[%emt 0:00:00]} f4 {[%emt 0:00:00]} 53. Rg1 {[%emt 0:00:00]} Be4 {[%emt 0:00:00]} 54. Rg4 {[%emt 0:00:00]} Kf5 {[%emt 0:00:00]} 55. Rg5+ {[%emt 0:00:00]} Kf6 {[%emt 0:00:00]} 56. Rc5 {[%emt 0:00:00]} Bd3 {[%emt 0:00:00]} 57. Kf3 {[%emt 0:00:00]} Kg6 {[%emt 0:00:00]} 58. Kxf4 {[%emt 0:00:00]} Kh6 {[%emt 0:00:00]} 59. Ke3 {[%emt 0:00:00]} Bf1 {[%emt 0:00:00]} 60. Kd2 {[%emt 0:00:00]} Bd3 {[%emt 0:00:00]} 61. Kc1 {[%emt 0:00:00]} Kg6 {[%emt 0:00:00]} 62. Kb2 {[%emt 0:00:00]} Kf6 {[%emt 0:00:00]} 63. Ka3 {[%emt 0:00:00]} Ke6 {[%emt 0:00:00]} 64. Kb4 {[%emt 0:00:00]} Ke7 {[%emt 0:00:00]} 65. Rxc4 {[%emt 0:00:00]} Bf5 {[%emt 0:00:00]} 66. Rd4 {[%emt 0:00:00]} Be6 {[%emt 0:00:00]} 67. Re4 {[%emt 0:00:00]} Kd7 {[%emt 0:00:00]} 68. Rxe6 {[%emt 0:00:00]} Kxe6 {[%emt 0:00:00]} 69. c4 {[%emt 0:00:00]} Kd6 {[%emt 0:00:00]} 70. c5+ {[%emt 0:00:00]} Kd5 {[%emt 0:00:00]} 71. Kb5 {[%emt 0:00:00]} Ke6 {[%emt 0:00:00]} 72. c6 {[%emt 0:00:00]} Ke7 {[%emt 0:00:00]} 73. Kb6 {[%emt 0:00:00]} Kd8 {[%emt 0:00:00]} 74. Kb7 {[%emt 0:00:00]} Ke7 {[%emt 0:00:00]} 75. c7 {[%emt 0:00:00]} Kf6 {[%emt 0:00:00]} 76. c8=Q {[%emt 0:00:00]} Kg7 {[%emt 0:00:00]} 77. Qf5 {[%emt 0:00:00]} Kh8 {[%emt 0:00:00]} 78. Qg5 {[%emt 0:00:00]} Kh7 {[%emt 0:17:00]} 79. h5 {[%emt 0:00:00]} Kh8 {[%emt 0:00:00]} 80. h6 {[%emt 0:00:00]} 1-0

[Event "British Championship 2024"]
[Site "Hull"]
[Date "2024.07.31"]
[Round "5.33"]
[White "Southcott-Moyers, Indy"]
[Black "Larkin, Benjamin"]
[Result "1-0"]
[Annotator "RC"]
[ECO "A16"]
[WhiteElo "2182"]
[BlackElo "1952"]
[PlyCount "91"]
[EventDate "2024.07.31"]
[EventCountry "GBR"]
[SourceTitle "playchess.com"]
[Source "ChessBase"]
[SourceQuality "1"]
[TimeControl "40/5400+30:1800+30"]

1. Nf3 {[%emt 0:00:02]} Nf6 {[%emt 0:00:07]} 2. c4 {[%emt 0:00:06]} g6 {[%emt 0:00:04]} 3. Nc3 {[%emt 0:00:03]} d5 {[%emt 0:00:05]} 4. cxd5 {[%emt 0:00:02]} Nxd5 {[%emt 0:00:05]} 5. h4 {[%emt 0:00:08]} Bg7 {[%emt 0:00:07]} 6. e4 {[%emt 0:00:05]} Nxc3 {[%emt 0:00:04]} 7. dxc3 {[%emt 0:00:04]} Qxd1+ {[%emt 0:00:04]} 8. Kxd1 {[%emt 0:00:05]} Nd7 {[%emt 0:00:04]} 9. h5 {[%emt 0:04:40]} b6 {[%emt 0:00:04]} 10. Bf4 {[%emt 0:08:44]} e5 {[%emt 0:01:22]} 11. Be3 {[%emt 0:03:47]} Bb7 {[%emt 0:00:13]} 12. Nd2 {[%emt 0:00:57]} O-O-O {[%emt 0:01:00]} 13. Kc2 {[%emt 0:02:15]} f5 {[%emt 0:01:45]} 14. f3 {[%emt 0:06:54]} f4 {[%emt 0:01:48]} 15. Bf2 {[%emt 0:00:06]} g5 {[%emt 0:03:16]} 16. h6 {[%emt 0:03:59]} Bf8 {[%emt 0:00:42]} 17. Bc4 {[%emt 0:01:01]} Nf6 {[%emt 0:03:37]} 18. Rad1 {[%emt 0:05:43]} Rd6 {[%emt 0:06:10]} 19. Bf7 {[%emt 0:08:44]} Ba6 {[%emt 0:04:10]} 20. Nc4 {[%emt 0:04:04]} Rxd1 {[%emt 0:01:26]} 21. Kxd1 {[%emt 0:01:55]} Bxc4 {[%emt 0:00:23]} 22. Bxc4 {[%emt 0:00:02]} Kd7 {[%emt 0:01:13]} 23. Ke2 {[%emt 0:05:42]} Ke7 {[%emt 0:00:51]} 24. g3 {[%emt 0:01:06]} c5 {[%emt 0:20:58]} 25. a4 {[%emt 0:04:16]} Ng8 {[%emt 0:07:19]} 26. a5 {[%emt 0:01:47]} Nxh6 {[%emt 0:01:38]} 27. axb6 {[%emt 0:01:35]} axb6 {[%emt 0:00:11]} 28. Ra1 {[%emt 0:00:32]} Kd6 {[%emt 0:03:56]} 29. Ra7 {[%emt 0:03:44]} Be7 {[%emt 0:01:30]} 30. gxf4 {[%emt 0:08:35]} gxf4 {[%emt 0:00:44]} 31. b4 {[%emt 0:06:12]} cxb4 {[%emt 0:07:14]} 32. Bxb6 {[%emt 0:03:16]} Rc8 {[%emt 0:00:37]} 33. cxb4 {[%emt 0:00:15]} Rxc4 {[%emt 0:01:51]} 34. Bc5+ {[%emt 0:00:04]} Rxc5 {[%emt 0:09:39]} 35. bxc5+ {[%emt 0:00:07]} Ke6 {[%emt 0:00:26]} 36. Ra6+ {[%emt 0:00:12]} Kd7 {[%emt 0:02:22]} 37. Rxh6 {[%emt 0:00:09]} Bxc5 {[%emt 0:00:06]} 38. Rxh7+ {[%emt 0:00:22]} Kc6 {[%emt 0:00:10]} 39. Kd3 {[%emt 0:00:49]} Kb5 {[%emt 0:00:20]} 40. Rd7 {[%emt 0:00:21]} Kc6 {[%emt 0:00:52]} 41. Rd5 {[%emt 0:30:05]} Bd6 {[%emt 0:30:09]} 42. Kc4 {[%emt 0:00:04]} Bb8 {[%emt 0:00:27]} 43. Rd1 {[%emt 0:00:11]} Ba7 {[%emt 0:00:38]} 44. Rh1 {[%emt 0:00:08]} Bc5 {[%emt 0:00:16]} 45. Rh6+ {[%emt 0:00:05]} Bd6 {[%emt 0:00:05]} 46. Rg6 {[%emt 0:00:03]} 1-0

[Event "British Championship 2024"]
[Site "Hull"]
[Date "2024.07.31"]
[Round "5.35"]
[White "Larchikov, Maksym"]
[Black "Sachdeva, Ronit"]
[Result "0-1"]
[Annotator "RC"]
[ECO "D19"]
[WhiteElo "2181"]
[BlackElo "1907"]
[PlyCount "72"]
[EventDate "2024.07.31"]
[EventCountry "GBR"]
[SourceTitle "playchess.com"]
[Source "ChessBase"]
[SourceQuality "1"]
[TimeControl "40/5400+30:1800+30"]

1. d4 {[%emt 0:00:04]} d5 {[%emt 0:00:07]} 2. c4 {[%emt 0:00:13]} c6 {[%emt 0:00:04]} 3. Nc3 {[%emt 0:00:21]} Nf6 {[%emt 0:00:08]} 4. Nf3 {[%emt 0:00:16]} dxc4 {[%emt 0:00:06]} 5. a4 {[%emt 0:00:18]} Bf5 {[%emt 0:00:12]} 6. e3 {[%emt 0:00:26]} e6 {[%emt 0:00:05]} 7. Bxc4 {[%emt 0:00:15]} Bb4 {[%emt 0:00:06]} 8. O-O {[%emt 0:00:17]} O-O {[%emt 0:00:05]} 9. Qe2 {[%emt 0:00:42]} Bg6 {[%emt 0:00:09]} 10. Ne5 {[%emt 0:01:41]} Nbd7 {[%emt 0:00:04]} 11. Nxg6 {[%emt 0:05:05]} hxg6 {[%emt 0:00:25]} 12. Rd1 {[%emt 0:01:17]} Qe7 {[%emt 0:00:05]} 13. e4 {[%emt 0:07:14]} e5 {[%emt 0:00:06]} 14. d5 {[%emt 0:01:17]} Nb6 {[%emt 0:00:06]} 15. dxc6 {[%emt 0:08:06]} Nxc4 {[%emt 0:00:38]} 16. Qxc4 {[%emt 0:01:13]} bxc6 {[%emt 0:01:36]} 17. g3 {[%emt 1:10:15]} Qc5 {[%emt 0:09:58]} 18. Qd3 {[%emt 0:00:00]} Qe7 {[%emt 0:11:53]} 19. Bg5 {[%emt 0:00:00]} Bc5 {[%emt 0:05:31]} 20. Be3 {[%emt 0:00:00]} Rab8 {[%emt 0:09:24]} 21. Rab1 {[%emt 0:00:00]} Rb4 {[%emt 0:09:14]} 22. f3 {[%emt 0:00:00]} Rfb8 {[%emt 0:03:03]} 23. Rd2 {[%emt 0:00:00]} g5 {[%emt 0:07:22]} 24. h3 {[%emt 0:00:00]} Bd4 {[%emt 0:07:30]} 25. Bxd4 {[%emt 0:00:00]} exd4 {[%emt 0:03:16]} 26. Ne2 {[%emt 0:00:00]} c5 {[%emt 0:00:55]} 27. Qc2 {[%emt 0:00:00]} Nd7 {[%emt 0:03:22]} 28. f4 {[%emt 0:00:00]} Rb3 {[%emt 0:06:20]} 29. e5 {[%emt 0:01:01]} gxf4 {[%emt 0:04:57]} 30. gxf4 {[%emt 0:01:29]} Rxh3 {[%emt 0:03:05]} 31. Kg2 {[%emt 0:02:23]} Qh4 {[%emt 0:02:12]} 32. Qf5 {[%emt 0:02:01]} Rh2+ {[%emt 0:01:32]} 33. Kf3 {[%emt 0:00:01]} Qf2+ {[%emt 0:01:43]} 34. Ke4 {[%emt 0:00:06]} Qe3+ {[%emt 0:02:17]} 35. Kd5 {[%emt 0:01:06]} Qf3+ {[%emt 0:00:56]} 36. Kd6 {[%emt 0:00:21]} Rh6+ {[%emt 0:00:58]} 0-1

[Event "British Championship 2024"]
[Site "Hull"]
[Date "2024.07.31"]
[Round "5.36"]
[White "Bradbury, Neil H"]
[Black "Sanger, Jake M"]
[Result "1-0"]
[Annotator "RC"]
[ECO "D78"]
[WhiteElo "2153"]
[BlackElo "2026"]
[PlyCount "33"]
[EventDate "2024.07.31"]
[EventCountry "GBR"]
[SourceTitle "playchess.com"]
[Source "ChessBase"]
[SourceQuality "1"]
[TimeControl "40/5400+30:1800+30"]

1. d4 {[%emt 0:00:10]} Nf6 {[%emt 0:00:07]} 2. Nf3 {[%emt 0:00:16]} g6 {[%emt 0:00:13]} 3. g3 {[%emt 0:01:05]} Bg7 {[%emt 0:00:06]} 4. Bg2 {[%emt 0:00:03]} O-O {[%emt 0:00:16]} 5. c4 {[%emt 0:01:00]} c6 {[%emt 0:00:10]} 6. O-O {[%emt 0:00:16]} d5 {[%emt 0:00:05]} 7. Nbd2 {[%emt 0:02:56]} Bf5 {[%emt 0:01:16]} 8. b3 {[%emt 0:01:39]} a5 {[%emt 0:05:18]} 9. Bb2 {[%emt 0:08:29]} b5 {[%emt 0:13:47]} 10. Ne5 {[%emt 0:05:59]} bxc4 {[%emt 0:20:44]} 11. bxc4 {[%emt 0:16:21]} a4 {[%emt 0:00:53]} 12. Rc1 {[%emt 0:04:37]} Ra6 {[%emt 0:02:13]} 13. Ba3 {[%emt 0:03:13]} Nbd7 {[%emt 0:04:37]} 14. cxd5 {[%emt 0:01:50]} cxd5 {[%emt 0:06:05]} 15. Nc6 {[%emt 0:01:02]} Rxc6 {[%emt 0:00:06]} 16. Rxc6 {[%emt 0:00:05]} Qa5 {[%emt 0:00:06]} 17. Bxe7 {[%emt 0:06:40]} 1-0

[Event "British Championship 2024"]
[Site "Hull"]
[Date "2024.07.31"]
[Round "5.39"]
[White "Rida, Ruqayyah"]
[Black "Verma, Aditya"]
[Result "1-0"]
[Annotator "RC"]
[ECO "C54"]
[WhiteElo "1962"]
[BlackElo "2118"]
[PlyCount "75"]
[EventDate "2024.07.31"]
[EventCountry "GBR"]
[SourceTitle "playchess.com"]
[Source "ChessBase"]
[SourceQuality "1"]
[TimeControl "40/5400+30:1800+30"]

1. e4 {[%emt 0:00:04]} e5 {[%emt 0:00:18]} 2. Nf3 {[%emt 0:00:06]} Nc6 {[%emt 0:00:06]} 3. Bc4 {[%emt 0:00:05]} Nf6 {[%emt 0:00:06]} 4. d3 {[%emt 0:00:08]} Bc5 {[%emt 0:00:17]} 5. c3 {[%emt 0:00:07]} a5 {[%emt 0:00:11]} 6. a4 {[%emt 0:00:45]} d6 {[%emt 0:01:08]} 7. Bb3 {[%emt 0:00:50]} h6 {[%emt 0:00:51]} 8. O-O {[%emt 0:00:45]} O-O {[%emt 0:00:34]} 9. Re1 {[%emt 0:00:54]} Re8 {[%emt 0:02:30]} 10. Nbd2 {[%emt 0:04:17]} Be6 {[%emt 0:01:13]} 11. Nc4 {[%emt 0:03:48]} Ba7 {[%emt 0:17:24]} 12. h3 {[%emt 0:07:56]} Qd7 {[%emt 0:03:25]} 13. Be3 {[%emt 0:08:00]} Bxe3 {[%emt 0:01:18]} 14. Rxe3 {[%emt 0:09:22]} Rad8 {[%emt 0:04:23]} 15. Qe2 {[%emt 0:04:31]} Qc8 {[%emt 0:04:20]} 16. Re1 {[%emt 0:10:53]} Qa8 {[%emt 0:09:21]} 17. Qc2 {[%emt 0:14:35]} Qa7 {[%emt 0:01:27]} 18. Na3 {[%emt 0:03:53]} Qb6 {[%emt 0:07:15]} 19. Nb5 {[%emt 0:04:42]} Bxb3 {[%emt 0:10:28]} 20. Qxb3 {[%emt 0:00:03]} Na7 {[%emt 0:00:36]} 21. Qc4 {[%emt 0:02:50]} c6 {[%emt 0:12:18]} 22. Nxa7 {[%emt 0:01:01]} Qxa7 {[%emt 0:00:05]} 23. d4 {[%emt 0:02:34]} Nxe4 {[%emt 0:07:20]} 24. Nxe5 {[%emt 0:03:39]} d5 {[%emt 0:00:08]} 25. Qd3 {[%emt 0:05:54]} c5 {[%emt 0:02:35]} 26. dxc5 {[%emt 0:00:56]} Qxc5 {[%emt 0:02:39]} 27. Nf3 {[%emt 0:11:22]} Qb6 {[%emt 0:01:02]} 28. R3e2 {[%emt 0:00:00]} Qc6 {[%emt 0:08:02]} 29. Qd4 {[%emt 0:00:00]} Rf8 {[%emt 0:02:21]} 30. Re3 {[%emt 0:00:00]} Rc8 {[%emt 0:00:43]} 31. Ne5 {[%emt 0:00:00]} Qc5 {[%emt 0:00:01]} 32. Qd1 {[%emt 0:00:09]} Rfe8 {[%emt 0:01:00]} 33. Nd3 {[%emt 0:00:37]} Qb6 {[%emt 0:00:30]} 34. Nf4 {[%emt 0:01:45]} Qxb2 {[%emt 0:00:13]} 35. R1e2 {[%emt 0:00:23]} Qb6 {[%emt 0:01:11]} 36. Nxd5 {[%emt 0:00:20]} Qg6 {[%emt 0:00:33]} 37. f3 {[%emt 0:00:40]} Nd6 {[%emt 0:00:24]} 38. Rxe8+ {[%emt 0:00:07]} 1-0

[Event "British Championship 2024"]
[Site "Hull"]
[Date "2024.07.31"]
[Round "5.40"]
[White "Subramanian, Anusha"]
[Black "Arnott, Jonathan W"]
[Result "1-0"]
[Annotator "RC"]
[ECO "E11"]
[WhiteElo "2050"]
[BlackElo "2104"]
[PlyCount "132"]
[EventDate "2024.07.31"]
[EventCountry "GBR"]
[SourceTitle "playchess.com"]
[Source "ChessBase"]
[SourceQuality "1"]
[TimeControl "40/5400+30:1800+30"]

1. d4 {[%emt 0:00:03]} e6 {[%emt 0:00:05]} 2. c4 {[%emt 0:00:03]} Nf6 {[%emt 0:00:16]} 3. Nf3 {[%emt 0:00:05]} Bb4+ {[%emt 0:00:36]} 4. Nbd2 {[%emt 0:00:06]} d5 {[%emt 0:01:28]} 5. Qa4+ {[%emt 0:00:25]} Nc6 {[%emt 0:00:08]} 6. e3 {[%emt 0:00:07]} O-O {[%emt 0:00:41]} 7. a3 {[%emt 0:00:21]} Bxd2+ {[%emt 0:01:27]} 8. Bxd2 {[%emt 0:00:18]} Ne4 {[%emt 0:00:20]} 9. Bd3 {[%emt 0:00:35]} Nxd2 {[%emt 0:02:35]} 10. Nxd2 {[%emt 0:00:20]} dxc4 {[%emt 0:00:58]} 11. Nxc4 {[%emt 0:09:51]} e5 {[%emt 0:16:25]} 12. Qc2 {[%emt 0:07:55]} exd4 {[%emt 0:00:42]} 13. Bxh7+ {[%emt 0:02:35]} Kh8 {[%emt 0:00:04]} 14. Be4 {[%emt 0:03:41]} dxe3 {[%emt 0:06:29]} 15. Nxe3 {[%emt 0:03:59]} f5 {[%emt 0:16:42]} 16. Bxc6 {[%emt 0:08:42]} f4 {[%emt 0:02:00]} 17. Be4 {[%emt 0:08:31]} fxe3 {[%emt 0:00:10]} 18. O-O {[%emt 0:00:45]} exf2+ {[%emt 0:10:32]} 19. Rxf2 {[%emt 0:01:12]} Rxf2 {[%emt 0:00:06]} 20. Qd2 {[%emt 0:50:56]} Re2 21. Qxe2 {[%emt 0:00:00]} c6 {[%emt 0:01:13]} 22. Qf2 {[%emt 0:00:00]} Qb6 {[%emt 0:01:21]} 23. Qxb6 {[%emt 0:00:00]} axb6 {[%emt 0:00:03]} 24. Rd1 {[%emt 0:00:00]} Bg4 {[%emt 0:07:08]} 25. Rd4 {[%emt 0:00:00]} Kg8 {[%emt 0:01:20]} 26. Bxc6 {[%emt 0:00:00]} bxc6 {[%emt 0:00:06]} 27. Rxg4 {[%emt 0:00:00]} Rd8 {[%emt 0:00:03]} 28. Rb4 {[%emt 0:00:00]} b5 {[%emt 0:00:25]} 29. Kf2 {[%emt 0:00:00]} Rd2+ {[%emt 0:02:04]} 30. Kf3 {[%emt 0:00:00]} Kf7 {[%emt 0:00:22]} 31. h4 {[%emt 0:00:00]} Ke6 {[%emt 0:01:08]} 32. g4 {[%emt 0:00:00]} Ke5 {[%emt 0:05:31]} 33. Rb3 {[%emt 0:00:00]} g6 {[%emt 0:01:42]} 34. Re3+ {[%emt 0:00:00]} Kf6 {[%emt 0:05:28]} 35. Kf4 {[%emt 0:00:00]} Rf2+ {[%emt 0:02:14]} 36. Ke4 {[%emt 0:00:00]} Rxb2 {[%emt 0:00:08]} 37. Rc3 {[%emt 0:00:00]} Re2+ {[%emt 0:00:14]} 38. Kf4 {[%emt 0:00:00]} Re6 {[%emt 0:02:37]} 39. Rc5 {[%emt 0:00:00]} Ke7 {[%emt 0:03:56]} 40. Kg5 {[%emt 0:00:00]} Kd6 {[%emt 0:04:07]} 41. Rc3 {[%emt 0:29:01]} Kd5 {[%emt 0:31:38]} 42. h5 {[%emt 0:01:01]} gxh5 {[%emt 0:00:10]} 43. gxh5 {[%emt 0:00:07]} c5 {[%emt 0:06:13]} 44. h6 {[%emt 0:01:44]} Kd4 {[%emt 0:00:00]} 45. h7 {[%emt 0:00:00]} Re8 {[%emt 0:00:00]} 46. Rb3 {[%emt 0:00:00]} Rh8 {[%emt 0:00:00]} 47. Kg6 {[%emt 0:00:00]} Kc4 {[%emt 0:00:00]} 48. Rb1 {[%emt 0:00:00]} b4 {[%emt 0:00:00]} 49. a4 {[%emt 0:00:00]} Ra8 {[%emt 0:00:00]} 50. Kg7 {[%emt 0:00:00]} Ra7+ {[%emt 0:00:00]} 51. Kg6 {[%emt 0:00:00]} Ra8 {[%emt 0:00:00]} 52. Rh1 {[%emt 0:00:00]} b3 {[%emt 0:00:00]} 53. h8=Q {[%emt 0:00:00]} Rxh8 {[%emt 0:00:00]} 54. Rxh8 {[%emt 0:00:00]} Kb4 {[%emt 0:00:00]} 55. Rb8+ {[%emt 0:00:00]} Kxa4 {[%emt 0:00:00]} 56. Kf5 {[%emt 0:00:00]} Ka3 {[%emt 0:00:00]} 57. Ke4 {[%emt 0:00:00]} Ka2 {[%emt 0:00:00]} 58. Kd3 {[%emt 0:00:00]} c4+ {[%emt 0:00:09]} 59. Kc3 {[%emt 0:00:00]} Ka1 {[%emt 0:00:26]} 60. Ra8+ {[%emt 0:04:51]} Kb1 {[%emt 0:00:08]} 61. Rf8 {[%emt 0:01:23]} Ka2 {[%emt 0:01:56]} 62. Rf1 {[%emt 0:00:35]} b2 {[%emt 0:00:21]} 63. Kc2 {[%emt 0:00:07]} Ka3 {[%emt 0:01:37]} 64. Rb1 {[%emt 0:00:09]} c3 {[%emt 0:01:07]} 65. Kxc3 {[%emt 0:00:08]} Ka2 {[%emt 0:00:01]} 66. Rxb2+ {[%emt 0:00:07]} Ka1 {[%emt 0:00:03]} 1-0